[Event "Titled Tuesday Blitz July 6 2021"]
[White "Kukhmazov, Arsen"]
[Black "Eternauta2400"]
[WhiteFideId "24108260"]
[WhiteElo "2453"]
[BlackElo "2507"]
[Result "0-1"]
[Round "11"]
[TimeControl "180+1"]
[Date "2021.07.06"]
[WhiteClock "0:01:23"]
[BlackClock "0:02:12"]

1. d4 {[%clk 0:02:58]}  Nf6 {[%clk 0:02:59]} 2. c4 {[%clk 0:02:59]}  e6 {[%clk 0:02:59]} 3. Nf3 {[%clk 0:02:58]}  d5 {[%clk 0:02:59]} 4. e3 {[%clk 0:02:58]}  Bd6 {[%clk 0:02:54]} 5. b3 {[%clk 0:02:59]}  O-O {[%clk 0:02:54]} 6. Bb2 {[%clk 0:02:59]}  c6 {[%clk 0:02:54]} 7. Bd3 {[%clk 0:02:57]}  Nbd7 {[%clk 0:02:55]} 8. O-O {[%clk 0:02:56]}  Qc7 {[%clk 0:02:54]} 9. Nc3 {[%clk 0:02:55]}  dxc4 {[%clk 0:02:55]} 10. Bxc4 {[%clk 0:02:49]}  e5 {[%clk 0:02:55]} 11. dxe5 {[%clk 0:02:50]}  Nxe5 {[%clk 0:02:55]} 12. Nxe5 {[%clk 0:02:50]}  Bxe5 {[%clk 0:02:56]} 13. h3 {[%clk 0:02:47]}  Bf5 {[%clk 0:02:55]} 14. Qc1 {[%clk 0:02:42]}  Rad8 {[%clk 0:02:51]} 15. Be2 {[%clk 0:02:34]}  Rd7 {[%clk 0:02:44]} 16. Na4 {[%clk 0:02:31]}  Bxb2 {[%clk 0:02:42]} 17. Qxb2 {[%clk 0:02:32]}  Rfd8 {[%clk 0:02:42]} 18. Rfd1 {[%clk 0:02:32]}  Ne4 {[%clk 0:02:40]} 19. Rxd7 {[%clk 0:02:28]}  Rxd7 {[%clk 0:02:38]} 20. Rd1 {[%clk 0:02:29]}  Rxd1+ {[%clk 0:02:37]} 21. Bxd1 {[%clk 0:02:29]}  b5 {[%clk 0:02:26]} 22. g4 {[%clk 0:01:23]}  Bg6 {[%clk 0:02:12]} 0-1


[Site "https://www.chess.com"]

[Event "Titled Tuesday Blitz July 6 2021"]
[White "Ladan, Nicholas"]
[Black "Shukhman, Anna"]
[WhiteFideId "30918855"]
[BlackFideId "54180058"]
[WhiteElo "2452"]
[BlackElo "1628"]
[Result "0-1"]
[Round "11"]
[TimeControl "180+1"]
[Date "2021.07.06"]
[WhiteClock "0:00:15"]
[BlackClock "0:00:16"]

1. d4 {[%clk 0:03:00]}  f5 {[%clk 0:02:59]} 2. g4 {[%clk 0:03:00]}  fxg4 {[%clk 0:02:58]} 3. e4 {[%clk 0:03:00]}  d5 {[%clk 0:02:55]} 4. e5 {[%clk 0:02:59]}  g6 {[%clk 0:02:51]} 5. h3 {[%clk 0:02:59]}  gxh3 {[%clk 0:02:49]} 6. Nxh3 {[%clk 0:02:59]}  Bg7 {[%clk 0:02:48]} 7. Qf3 {[%clk 0:02:51]}  Bf5 {[%clk 0:02:42]} 8. Nc3 {[%clk 0:02:41]}  e6 {[%clk 0:02:39]} 9. Bg5 {[%clk 0:02:31]}  Ne7 {[%clk 0:02:37]} 10. Nf4 {[%clk 0:02:27]}  O-O {[%clk 0:02:35]} 11. O-O-O {[%clk 0:02:22]}  Nbc6 {[%clk 0:02:21]} 12. Qg3 {[%clk 0:02:21]}  a6 {[%clk 0:02:14]} 13. Bh3 {[%clk 0:02:08]}  Qd7 {[%clk 0:02:06]} 14. Qh4 {[%clk 0:02:03]}  h5 {[%clk 0:01:55]} 15. Rdg1 {[%clk 0:01:52]}  b5 {[%clk 0:01:41]} 16. Nxh5 {[%clk 0:01:48]}  gxh5 {[%clk 0:01:39]} 17. Bf6 {[%clk 0:01:43]}  Bg6 {[%clk 0:01:25]} 18. Qxh5 {[%clk 0:01:23]}  Rxf6 {[%clk 0:01:05]} 19. exf6 {[%clk 0:01:03]}  Bxh5 {[%clk 0:01:04]} 20. Rxg7+ {[%clk 0:01:04]}  Kf8 {[%clk 0:01:03]} 21. Bg4 {[%clk 0:01:01]}  Qd6 {[%clk 0:00:51]} 22. Ne2 {[%clk 0:00:44]}  Nf5 {[%clk 0:00:46]} 23. Bxf5 {[%clk 0:00:27]}  exf5 {[%clk 0:00:46]} 24. Rxh5 {[%clk 0:00:25]}  Qxf6 {[%clk 0:00:44]} 25. Rxc7 {[%clk 0:00:25]}  Re8 {[%clk 0:00:39]} 26. Nf4 {[%clk 0:00:25]}  Nxd4 {[%clk 0:00:33]} 27. Ng6+ {[%clk 0:00:15]}  Qxg6 {[%clk 0:00:32]} 28. Rh8+ {[%clk 0:00:15]}  Qg8 {[%clk 0:00:33]} 29. Rxg8+ {[%clk 0:00:15]}  Kxg8 {[%clk 0:00:33]} 30. Rd7 {[%clk 0:00:16]}  Nf3 {[%clk 0:00:31]} 31. c3 {[%clk 0:00:15]}  Re1+ {[%clk 0:00:29]} 32. Kc2 {[%clk 0:00:15]}  Re2+ {[%clk 0:00:29]} 33. Kb3 {[%clk 0:00:16]}  Rxf2 {[%clk 0:00:23]} 34. Rxd5 {[%clk 0:00:16]}  Nd2+ {[%clk 0:00:23]} 35. Kb4 {[%clk 0:00:17]}  f4 {[%clk 0:00:23]} 36. a3 {[%clk 0:00:16]}  f3 {[%clk 0:00:23]} 37. Rd6 {[%clk 0:00:17]}  Nc4 {[%clk 0:00:22]} 38. Rxa6 {[%clk 0:00:16]}  Rxb2+ {[%clk 0:00:21]} 39. Kc5 {[%clk 0:00:16]}  f2 {[%clk 0:00:21]} 40. Rf6 {[%clk 0:00:17]}  Ne3 {[%clk 0:00:20]} 41. Rxf2 {[%clk 0:00:11]}  Rxf2 {[%clk 0:00:18]} 42. Kxb5 {[%clk 0:00:12]}  Rb2+ {[%clk 0:00:18]} 43. Ka4 {[%clk 0:00:13]}  Kf7 {[%clk 0:00:19]} 44. c4 {[%clk 0:00:13]}  Ke6 {[%clk 0:00:18]} 45. c5 {[%clk 0:00:13]}  Kd5 {[%clk 0:00:18]} 46. c6 {[%clk 0:00:13]}  Kxc6 {[%clk 0:00:18]} 47. Ka5 {[%clk 0:00:13]}  Nc4+ {[%clk 0:00:18]} 48. Ka4 {[%clk 0:00:14]}  Nb6+ {[%clk 0:00:18]} 49. Ka5 {[%clk 0:00:15]}  Rb5+ {[%clk 0:00:17]} 50. Ka6 {[%clk 0:00:15]}  Rb3 {[%clk 0:00:17]} 51. a4 {[%clk 0:00:15]}  Ra3 {[%clk 0:00:17]} 52. Ka7 {[%clk 0:00:15]}  Rxa4+ {[%clk 0:00:16]} 53. Kb8 {[%clk 0:00:15]}  Ra8# {[%clk 0:00:16]} 0-1


[Site "https://www.chess.com"]

[Event "Titled Tuesday Blitz July 6 2021"]
[White "Lagunow, Raphael"]
[Black "Golubenko, Valentina"]
[WhiteFideId "24652644"]
[BlackFideId "4501993"]
[WhiteElo "2400"]
[BlackElo "2164"]
[Result "0-1"]
[Round "11"]
[TimeControl "180+1"]
[Date "2021.07.06"]
[WhiteClock "0:00:44"]
[BlackClock "0:00:48"]

1. e4 {[%clk 0:03:00]}  e6 {[%clk 0:02:59]} 2. b3 {[%clk 0:02:56]}  d5 {[%clk 0:02:59]} 3. Bb2 {[%clk 0:02:56]}  c5 {[%clk 0:02:57]} 4. Nc3 {[%clk 0:02:54]}  d4 {[%clk 0:02:55]} 5. Nce2 {[%clk 0:02:53]}  Nc6 {[%clk 0:02:56]} 6. Ng3 {[%clk 0:02:52]}  Nf6 {[%clk 0:02:55]} 7. f4 {[%clk 0:02:52]}  h5 {[%clk 0:02:47]} 8. h4 {[%clk 0:02:49]}  Qc7 {[%clk 0:02:40]} 9. Qf3 {[%clk 0:02:42]}  Nb4 {[%clk 0:02:30]} 10. Bd3 {[%clk 0:02:38]}  Bd7 {[%clk 0:02:14]} 11. N1e2 {[%clk 0:02:27]}  Be7 {[%clk 0:01:54]} 12. O-O {[%clk 0:02:20]}  O-O-O {[%clk 0:01:28]} 13. c3 {[%clk 0:02:03]}  dxc3 {[%clk 0:01:18]} 14. dxc3 {[%clk 0:01:59]}  Nxd3 {[%clk 0:01:14]} 15. Qxd3 {[%clk 0:02:00]}  Bc6 {[%clk 0:01:15]} 16. Qc2 {[%clk 0:02:00]}  Ng4 {[%clk 0:01:09]} 17. Bc1 {[%clk 0:01:42]}  Bxh4 {[%clk 0:01:08]} 18. Bd2 {[%clk 0:01:06]}  Bxg3 {[%clk 0:01:02]} 19. Nxg3 {[%clk 0:01:05]}  h4 {[%clk 0:01:02]} 20. Ne2 {[%clk 0:01:01]}  h3 {[%clk 0:00:59]} 21. Ng3 {[%clk 0:00:43]}  hxg2 {[%clk 0:00:55]} 22. Kxg2 {[%clk 0:00:44]}  Rh2+ {[%clk 0:00:53]} 23. Kf3 {[%clk 0:00:44]}  Rdxd2 {[%clk 0:00:48]} 0-1


[Site "https://www.chess.com"]

[Event "Titled Tuesday Blitz July 6 2021"]
[White "Lee, Qing Aun"]
[Black "Erdogdu, Mert"]
[WhiteFideId "5804167"]
[BlackFideId "6301495"]
[WhiteElo "2023"]
[BlackElo "2485"]
[Result "1-0"]
[Round "11"]
[TimeControl "180+1"]
[Date "2021.07.06"]
[WhiteClock "0:00:02"]
[BlackClock "0:00:08"]

1. e4 {[%clk 0:03:00]}  c5 {[%clk 0:03:00]} 2. Nf3 {[%clk 0:03:00]}  d6 {[%clk 0:03:00]} 3. d3 {[%clk 0:03:00]}  Nc6 {[%clk 0:02:59]} 4. g3 {[%clk 0:03:00]}  g6 {[%clk 0:02:59]} 5. Bg2 {[%clk 0:02:59]}  Bg7 {[%clk 0:03:00]} 6. O-O {[%clk 0:02:58]}  Nf6 {[%clk 0:03:01]} 7. Nbd2 {[%clk 0:02:57]}  O-O {[%clk 0:03:01]} 8. c3 {[%clk 0:02:55]}  Rb8 {[%clk 0:03:02]} 9. d4 {[%clk 0:02:53]}  cxd4 {[%clk 0:02:53]} 10. cxd4 {[%clk 0:02:53]}  d5 {[%clk 0:02:53]} 11. e5 {[%clk 0:02:50]}  Ne4 {[%clk 0:02:53]} 12. Re1 {[%clk 0:02:44]}  Bf5 {[%clk 0:02:44]} 13. Nb3 {[%clk 0:02:37]}  a5 {[%clk 0:02:28]} 14. a4 {[%clk 0:02:18]}  f6 {[%clk 0:02:14]} 15. exf6 {[%clk 0:01:55]}  Bxf6 {[%clk 0:01:55]} 16. Bf4 {[%clk 0:01:47]}  Rc8 {[%clk 0:01:54]} 17. Ne5 {[%clk 0:01:44]}  Nxe5 {[%clk 0:01:31]} 18. dxe5 {[%clk 0:01:43]}  Bg7 {[%clk 0:01:32]} 19. Nd4 {[%clk 0:01:41]}  Nxf2 {[%clk 0:01:10]} 20. Kxf2 {[%clk 0:01:38]}  g5 {[%clk 0:01:10]} 21. Nxf5 {[%clk 0:01:34]}  Rxf5 {[%clk 0:01:07]} 22. Bh3 {[%clk 0:01:33]}  Rf8 {[%clk 0:00:46]} 23. Bxc8 {[%clk 0:01:26]}  Qxc8 {[%clk 0:00:45]} 24. Qxd5+ {[%clk 0:01:23]}  Kh8 {[%clk 0:00:45]} 25. Rac1 {[%clk 0:01:12]}  Qh3 {[%clk 0:00:43]} 26. Qg2 {[%clk 0:01:08]}  Qh6 {[%clk 0:00:42]} 27. Kg1 {[%clk 0:01:03]}  gxf4 {[%clk 0:00:42]} 28. gxf4 {[%clk 0:00:52]}  Qxf4 {[%clk 0:00:40]} 29. Rf1 {[%clk 0:00:45]}  Qe3+ {[%clk 0:00:39]} 30. Kh1 {[%clk 0:00:45]}  Rg8 {[%clk 0:00:32]} 31. Rce1 {[%clk 0:00:44]}  Qb3 {[%clk 0:00:26]} 32. Rg1 {[%clk 0:00:43]}  Qxa4 {[%clk 0:00:20]} 33. Re4 {[%clk 0:00:43]}  Qc6 {[%clk 0:00:19]} 34. Rg4 {[%clk 0:00:38]}  Qxg2+ {[%clk 0:00:19]} 35. R1xg2 {[%clk 0:00:37]}  b5 {[%clk 0:00:19]} 36. h4 {[%clk 0:00:36]}  h6 {[%clk 0:00:19]} 37. e6 {[%clk 0:00:27]}  Kh7 {[%clk 0:00:17]} 38. h5 {[%clk 0:00:24]}  a4 {[%clk 0:00:17]} 39. Rb4 {[%clk 0:00:15]}  Rb8 {[%clk 0:00:16]} 40. Rf2 {[%clk 0:00:13]}  Bf6 {[%clk 0:00:15]} 41. Kg2 {[%clk 0:00:12]}  Rb6 {[%clk 0:00:12]} 42. Re2 {[%clk 0:00:11]}  Kg7 {[%clk 0:00:12]} 43. Kf3 {[%clk 0:00:11]}  Bg5 {[%clk 0:00:12]} 44. Kg4 {[%clk 0:00:12]}  Kf6 {[%clk 0:00:12]} 45. Rbe4 {[%clk 0:00:10]}  b4 {[%clk 0:00:11]} 46. Rf2+ {[%clk 0:00:10]}  Kg7 {[%clk 0:00:11]} 47. Rf7+ {[%clk 0:00:10]}  Kg8 {[%clk 0:00:11]} 48. Kf5 {[%clk 0:00:11]}  a3 {[%clk 0:00:10]} 49. Rc4 {[%clk 0:00:09]}  Rb8 {[%clk 0:00:08]} 50. bxa3 {[%clk 0:00:06]}  bxa3 {[%clk 0:00:09]} 51. Ra4 {[%clk 0:00:06]}  Bc1 {[%clk 0:00:09]} 52. Kg6 {[%clk 0:00:05]}  Kh8 {[%clk 0:00:07]} 53. Rh7+ {[%clk 0:00:04]}  Kg8 {[%clk 0:00:07]} 54. Rg7+ {[%clk 0:00:04]}  Kh8 {[%clk 0:00:08]} 55. Rh7+ {[%clk 0:00:04]}  Kg8 {[%clk 0:00:08]} 56. Rxe7 {[%clk 0:00:05]}  Kh8 {[%clk 0:00:08]} 57. Rh7+ {[%clk 0:00:05]}  Kg8 {[%clk 0:00:09]} 58. Raa7 {[%clk 0:00:05]}  Bb2 {[%clk 0:00:08]} 59. Rhe7 {[%clk 0:00:03]}  Kh8 {[%clk 0:00:08]} 60. Rh7+ {[%clk 0:00:03]}  Kg8 {[%clk 0:00:08]} 61. Rhf7 {[%clk 0:00:03]}  Kh8 {[%clk 0:00:08]} 62. e7 {[%clk 0:00:03]}  Rg8+ {[%clk 0:00:08]} 63. Kf5 {[%clk 0:00:03]}  Rg5+ {[%clk 0:00:08]} 64. Ke6 {[%clk 0:00:03]}  Re5+ {[%clk 0:00:08]} 65. Kd7 {[%clk 0:00:03]}  Kg8 {[%clk 0:00:08]} 66. Rf8+ {[%clk 0:00:02]}  Kg7 {[%clk 0:00:09]} 67. e8=Q {[%clk 0:00:02]}  Rxe8 {[%clk 0:00:08]} 68. Kxe8# {[%clk 0:00:02]} 1-0


[Site "https://www.chess.com"]

[Event "Titled Tuesday Blitz July 6 2021"]
[White "Leve, Nitai"]
[Black "Tqebuchava, Zurab"]
[WhiteFideId "2006898"]
[BlackFideId "13601113"]
[WhiteElo "2144"]
[BlackElo "2091"]
[Result "1-0"]
[Round "11"]
[TimeControl "180+1"]
[Date "2021.07.06"]
[WhiteClock "0:00:07"]
[BlackClock "0:00:06"]

1. e4 {[%clk 0:03:00]}  g6 {[%clk 0:03:00]} 2. Nf3 {[%clk 0:02:46]}  Bg7 {[%clk 0:02:59]} 3. d4 {[%clk 0:02:47]}  c6 {[%clk 0:02:58]} 4. Nc3 {[%clk 0:02:33]}  d6 {[%clk 0:02:58]} 5. Bc4 {[%clk 0:02:27]}  d5 {[%clk 0:02:57]} 6. exd5 {[%clk 0:02:06]}  b5 {[%clk 0:02:57]} 7. Bb3 {[%clk 0:02:05]}  b4 {[%clk 0:02:57]} 8. Ne4 {[%clk 0:01:52]}  cxd5 {[%clk 0:02:56]} 9. Nc5 {[%clk 0:01:42]}  Nf6 {[%clk 0:02:55]} 10. O-O {[%clk 0:01:20]}  O-O {[%clk 0:02:53]} 11. a3 {[%clk 0:01:19]}  bxa3 {[%clk 0:02:50]} 12. Rxa3 {[%clk 0:01:20]}  Bg4 {[%clk 0:02:40]} 13. h3 {[%clk 0:01:07]}  Bxf3 {[%clk 0:02:38]} 14. Qxf3 {[%clk 0:01:08]}  Nc6 {[%clk 0:02:00]} 15. c3 {[%clk 0:01:03]}  e6 {[%clk 0:01:54]} 16. Bg5 {[%clk 0:00:56]}  h6 {[%clk 0:01:48]} 17. Bxf6 {[%clk 0:00:50]}  Bxf6 {[%clk 0:01:42]} 18. Ba4 {[%clk 0:00:26]}  Nb8 {[%clk 0:01:11]} 19. Bc2 {[%clk 0:00:22]}  Be7 {[%clk 0:01:03]} 20. Rfa1 {[%clk 0:00:20]}  Bxc5 {[%clk 0:01:02]} 21. dxc5 {[%clk 0:00:19]}  Nc6 {[%clk 0:01:01]} 22. b4 {[%clk 0:00:17]}  Qc7 {[%clk 0:00:54]} 23. Qe3 {[%clk 0:00:14]}  Kg7 {[%clk 0:00:50]} 24. b5 {[%clk 0:00:14]}  Ne5 {[%clk 0:00:45]} 25. b6 {[%clk 0:00:13]}  Qb8 {[%clk 0:00:42]} 26. Rxa7 {[%clk 0:00:11]}  Rxa7 {[%clk 0:00:28]} 27. bxa7 {[%clk 0:00:12]}  Qa8 {[%clk 0:00:20]} 28. Qxe5+ {[%clk 0:00:12]}  Kh7 {[%clk 0:00:19]} 29. Qd6 {[%clk 0:00:10]}  Kg7 {[%clk 0:00:16]} 30. c6 {[%clk 0:00:08]}  Rd8 {[%clk 0:00:15]} 31. Qxd8 {[%clk 0:00:07]}  Qxd8 {[%clk 0:00:14]} 32. a8=Q {[%clk 0:00:08]}  Qf6 {[%clk 0:00:10]} 33. c7 {[%clk 0:00:07]}  Qe5 {[%clk 0:00:06]} 34. c8=Q {[%clk 0:00:07]} 1-0


[Site "https://www.chess.com"]

[Event "Titled Tuesday Blitz July 6 2021"]
[White "Maevsky, Nikolay"]
[Black "Jarovinsky, Alexey"]
[WhiteFideId "4198220"]
[BlackFideId "14115131"]
[WhiteElo "2213"]
[BlackElo "2446"]
[Result "0-1"]
[Round "11"]
[TimeControl "180+1"]
[Date "2021.07.06"]
[WhiteClock "0:00:08"]
[BlackClock "0:00:14"]

1. d4 {[%clk 0:03:00]}  Nc6 {[%clk 0:03:00]} 2. Nf3 {[%clk 0:02:58]}  d6 {[%clk 0:02:56]} 3. e4 {[%clk 0:02:57]}  Nf6 {[%clk 0:02:53]} 4. Nc3 {[%clk 0:02:56]}  g6 {[%clk 0:02:45]} 5. Be3 {[%clk 0:02:52]}  Bg7 {[%clk 0:02:45]} 6. h3 {[%clk 0:02:52]}  O-O {[%clk 0:02:44]} 7. d5 {[%clk 0:02:45]}  Nb4 {[%clk 0:02:41]} 8. Bc4 {[%clk 0:02:38]}  c6 {[%clk 0:02:34]} 9. O-O {[%clk 0:02:35]}  cxd5 {[%clk 0:02:10]} 10. exd5 {[%clk 0:02:35]}  Bd7 {[%clk 0:02:02]} 11. a3 {[%clk 0:02:34]}  Na6 {[%clk 0:02:02]} 12. Nd4 {[%clk 0:02:26]}  Nc5 {[%clk 0:01:56]} 13. Re1 {[%clk 0:02:24]}  Rc8 {[%clk 0:01:51]} 14. Bf1 {[%clk 0:02:22]}  a6 {[%clk 0:01:42]} 15. a4 {[%clk 0:02:19]}  Re8 {[%clk 0:01:29]} 16. a5 {[%clk 0:02:18]}  Nce4 {[%clk 0:01:25]} 17. Nxe4 {[%clk 0:02:11]}  Nxe4 {[%clk 0:01:26]} 18. c4 {[%clk 0:02:07]}  Nc5 {[%clk 0:01:07]} 19. b4 {[%clk 0:02:03]}  e5 {[%clk 0:01:06]} 20. dxe6 {[%clk 0:01:32]}  Nxe6 {[%clk 0:01:06]} 21. Nxe6 {[%clk 0:01:30]}  Bxe6 {[%clk 0:01:06]} 22. Rc1 {[%clk 0:01:25]}  Qh4 {[%clk 0:00:40]} 23. g3 {[%clk 0:01:18]}  Qe7 {[%clk 0:00:29]} 24. Qd2 {[%clk 0:01:12]}  h5 {[%clk 0:00:23]} 25. h4 {[%clk 0:01:11]}  Be5 {[%clk 0:00:19]} 26. Bg5 {[%clk 0:01:06]}  Qc7 {[%clk 0:00:19]} 27. Rxe5 {[%clk 0:00:58]}  dxe5 {[%clk 0:00:18]} 28. Bf6 {[%clk 0:00:59]}  Kh7 {[%clk 0:00:16]} 29. Qg5 {[%clk 0:00:55]}  Bf5 {[%clk 0:00:15]} 30. Be2 {[%clk 0:00:53]}  Re6 {[%clk 0:00:10]} 31. Bxh5 {[%clk 0:00:34]}  Qc6 {[%clk 0:00:10]} 32. Bd8 {[%clk 0:00:23]}  Qd7 {[%clk 0:00:09]} 33. Bb6 {[%clk 0:00:20]}  Rxb6 {[%clk 0:00:08]} 34. axb6 {[%clk 0:00:18]}  gxh5 {[%clk 0:00:08]} 35. Qxh5+ {[%clk 0:00:18]}  Kg7 {[%clk 0:00:08]} 36. Rd1 {[%clk 0:00:18]}  Qe6 {[%clk 0:00:07]} 37. Qg5+ {[%clk 0:00:18]}  Qg6 {[%clk 0:00:07]} 38. Qe3 {[%clk 0:00:13]}  Re8 {[%clk 0:00:07]} 39. Rd5 {[%clk 0:00:13]}  Qf6 {[%clk 0:00:06]} 40. h5 {[%clk 0:00:12]}  Bh7 {[%clk 0:00:06]} 41. g4 {[%clk 0:00:10]}  Qf4 {[%clk 0:00:05]} 42. Qxf4 {[%clk 0:00:09]}  exf4 {[%clk 0:00:06]} 43. Rd7 {[%clk 0:00:09]}  Re4 {[%clk 0:00:06]} 44. Rxb7 {[%clk 0:00:09]}  Rxc4 {[%clk 0:00:06]} 45. f3 {[%clk 0:00:08]}  Rxb4 {[%clk 0:00:06]} 46. g5 {[%clk 0:00:09]}  Rb5 {[%clk 0:00:05]} 47. g6 {[%clk 0:00:09]}  Bg8 {[%clk 0:00:05]} 48. h6+ {[%clk 0:00:08]}  Kxg6 {[%clk 0:00:05]} 49. Rb8 {[%clk 0:00:08]}  Bh7 {[%clk 0:00:05]} 50. b7 {[%clk 0:00:08]}  Kxh6 {[%clk 0:00:05]} 51. Kg2 {[%clk 0:00:08]}  a5 {[%clk 0:00:05]} 52. Kh3 {[%clk 0:00:07]}  a4 {[%clk 0:00:06]} 53. Kg4 {[%clk 0:00:07]}  a3 {[%clk 0:00:06]} 54. Ra8 {[%clk 0:00:07]}  Rxb7 {[%clk 0:00:05]} 55. Rxa3 {[%clk 0:00:07]}  Rb4 {[%clk 0:00:05]} 56. Ra6+ {[%clk 0:00:07]}  Bg6 {[%clk 0:00:05]} 57. Rf6 {[%clk 0:00:07]}  Kg7 {[%clk 0:00:05]} 58. Rd6 {[%clk 0:00:07]}  Rc4 {[%clk 0:00:05]} 59. Kg5 {[%clk 0:00:07]}  Rc5+ {[%clk 0:00:05]} 60. Kxf4 {[%clk 0:00:07]}  Rf5+ {[%clk 0:00:05]} 61. Kg3 {[%clk 0:00:08]}  Rf6 {[%clk 0:00:06]} 62. Rd4 {[%clk 0:00:08]}  Bf5 {[%clk 0:00:06]} 63. Kf2 {[%clk 0:00:08]}  Be6 {[%clk 0:00:07]} 64. Kg3 {[%clk 0:00:08]}  Rf5 {[%clk 0:00:06]} 65. Rd3 {[%clk 0:00:07]}  Bd5 {[%clk 0:00:06]} 66. Kg4 {[%clk 0:00:07]}  Kf6 {[%clk 0:00:06]} 67. Re3 {[%clk 0:00:07]}  Bxf3+ {[%clk 0:00:04]} 68. Kg3 {[%clk 0:00:06]}  Bd5 {[%clk 0:00:04]} 69. Rd3 {[%clk 0:00:06]}  Be6 {[%clk 0:00:04]} 70. Rd4 {[%clk 0:00:06]}  Rg5+ {[%clk 0:00:04]} 71. Kf3 {[%clk 0:00:06]}  Kg6 {[%clk 0:00:05]} 72. Rd3 {[%clk 0:00:06]}  Rf5+ {[%clk 0:00:05]} 73. Kg2 {[%clk 0:00:06]}  Rh5 {[%clk 0:00:05]} 74. Rd8 {[%clk 0:00:05]}  Kh6 {[%clk 0:00:06]} 75. Rh8+ {[%clk 0:00:05]}  Kg5 {[%clk 0:00:06]} 76. Rg8+ {[%clk 0:00:05]}  Kf4 {[%clk 0:00:06]} 77. Rf8 {[%clk 0:00:06]}  Rg5+ {[%clk 0:00:06]} 78. Kf2 {[%clk 0:00:06]}  Rb5 {[%clk 0:00:06]} 79. Rd8 {[%clk 0:00:06]}  Rb2+ {[%clk 0:00:06]} 80. Ke1 {[%clk 0:00:07]}  f5 {[%clk 0:00:06]} 81. Kd1 {[%clk 0:00:07]}  Rb3 {[%clk 0:00:06]} 82. Rd4+ {[%clk 0:00:06]}  Ke3 {[%clk 0:00:05]} 83. Rh4 {[%clk 0:00:06]}  Rd3+ {[%clk 0:00:05]} 84. Ke1 {[%clk 0:00:06]}  Rd4 {[%clk 0:00:05]} 85. Rh3+ {[%clk 0:00:06]}  Ke4 {[%clk 0:00:06]} 86. Rh4+ {[%clk 0:00:06]}  f4 {[%clk 0:00:06]} 87. Rh6 {[%clk 0:00:06]}  Bd5 {[%clk 0:00:06]} 88. Rh8 {[%clk 0:00:06]}  Ke3 {[%clk 0:00:06]} 89. Re8+ {[%clk 0:00:05]}  Be4 {[%clk 0:00:06]} 90. Rh8 {[%clk 0:00:04]}  Rd3 {[%clk 0:00:06]} 91. Rc8 {[%clk 0:00:04]}  f3 {[%clk 0:00:06]} 92. Rc2 {[%clk 0:00:04]}  Rb3 {[%clk 0:00:05]} 93. Re2+ {[%clk 0:00:05]}  Kf4 {[%clk 0:00:05]} 94. Rd2 {[%clk 0:00:05]}  Rb1+ {[%clk 0:00:05]} 95. Kf2 {[%clk 0:00:05]}  Rh1 {[%clk 0:00:05]} 96. Rd6 {[%clk 0:00:05]}  Rh2+ {[%clk 0:00:05]} 97. Kg1 {[%clk 0:00:05]}  Rb2 {[%clk 0:00:06]} 98. Rd1 {[%clk 0:00:04]}  Kg3 {[%clk 0:00:06]} 99. Rf1 {[%clk 0:00:04]}  Rg2+ {[%clk 0:00:06]} 100. Kh1 {[%clk 0:00:04]}  Rh2+ {[%clk 0:00:06]} 101. Kg1 {[%clk 0:00:04]}  Rh3 {[%clk 0:00:06]} 102. Rf2 {[%clk 0:00:04]}  Rh1+ {[%clk 0:00:05]} 103. Kxh1 {[%clk 0:00:04]}  Kxf2 {[%clk 0:00:06]} 104. Kh2 {[%clk 0:00:05]}  Ke2 {[%clk 0:00:06]} 105. Kh3 {[%clk 0:00:04]}  f2 {[%clk 0:00:07]} 106. Kh2 {[%clk 0:00:05]}  f1=Q {[%clk 0:00:08]} 107. Kg3 {[%clk 0:00:05]}  Qe1+ {[%clk 0:00:09]} 108. Kh2 {[%clk 0:00:05]}  Qd1 {[%clk 0:00:10]} 109. Kg3 {[%clk 0:00:06]}  Qc1 {[%clk 0:00:11]} 110. Kh2 {[%clk 0:00:06]}  Qc2 {[%clk 0:00:12]} 111. Kg3 {[%clk 0:00:07]}  Qc6 {[%clk 0:00:12]} 112. Kf4 {[%clk 0:00:07]}  Qb7 {[%clk 0:00:13]} 113. Kg3 {[%clk 0:00:08]}  Qa8 {[%clk 0:00:14]} 114. Kh2 {[%clk 0:00:08]}  Qa7 {[%clk 0:00:15]} 115. Kg3 {[%clk 0:00:09]}  Bb1 {[%clk 0:00:15]} 116. Kh2 {[%clk 0:00:10]}  Qg7 {[%clk 0:00:14]} 117. Kh1 {[%clk 0:00:08]}  Kf2 {[%clk 0:00:14]} 118. Kh2 {[%clk 0:00:08]}  Qh8# {[%clk 0:00:14]} 0-1


[Site "https://www.chess.com"]

[Event "Titled Tuesday Blitz July 6 2021"]
[White "Maltsevskaya, Aleksandra"]
[Black "Borisova, Ekaterina"]
[WhiteFideId "24174041"]
[BlackFideId "34124184"]
[WhiteElo "2225"]
[BlackElo "2021"]
[Result "1-0"]
[Round "11"]
[TimeControl "180+1"]
[Date "2021.07.06"]
[WhiteClock "0:01:03"]
[BlackClock "0:01:40"]

1. e4 {[%clk 0:03:00]}  e5 {[%clk 0:02:59]} 2. Nf3 {[%clk 0:02:50]}  Nf6 {[%clk 0:02:58]} 3. Nxe5 {[%clk 0:02:36]}  d6 {[%clk 0:02:57]} 4. Nf3 {[%clk 0:02:36]}  Nxe4 {[%clk 0:02:57]} 5. Nc3 {[%clk 0:02:36]}  Nf6 {[%clk 0:02:56]} 6. d4 {[%clk 0:02:20]}  Be7 {[%clk 0:02:56]} 7. Bd3 {[%clk 0:02:19]}  O-O {[%clk 0:02:56]} 8. O-O {[%clk 0:02:19]}  Bg4 {[%clk 0:02:56]} 9. h3 {[%clk 0:02:16]}  Bh5 {[%clk 0:02:55]} 10. Ne4 {[%clk 0:02:07]}  Nxe4 {[%clk 0:02:48]} 11. Bxe4 {[%clk 0:02:07]}  d5 {[%clk 0:02:37]} 12. Bd3 {[%clk 0:01:50]}  Nc6 {[%clk 0:02:34]} 13. c3 {[%clk 0:01:50]}  Bg6 {[%clk 0:02:23]} 14. Bxg6 {[%clk 0:01:47]}  hxg6 {[%clk 0:02:23]} 15. Qb3 {[%clk 0:01:47]}  Na5 {[%clk 0:02:18]} 16. Qa4 {[%clk 0:01:47]}  b6 {[%clk 0:02:18]} 17. Re1 {[%clk 0:01:46]}  Bd6 {[%clk 0:02:18]} 18. Bg5 {[%clk 0:01:44]}  Qc8 {[%clk 0:02:13]} 19. Be7 {[%clk 0:01:42]}  Bxe7 {[%clk 0:02:05]} 20. Rxe7 {[%clk 0:01:42]}  Qb7 {[%clk 0:01:56]} 21. Qd7 {[%clk 0:01:40]}  Rad8 {[%clk 0:01:50]} 22. Qxc7 {[%clk 0:01:37]}  Qa6 {[%clk 0:01:49]} 23. Ng5 {[%clk 0:01:28]}  Rc8 {[%clk 0:01:48]} 24. Qf4 {[%clk 0:01:27]}  f6 {[%clk 0:01:44]} 25. Ne6 {[%clk 0:01:07]}  Rf7 {[%clk 0:01:44]} 26. Rxf7 {[%clk 0:01:07]}  Kxf7 {[%clk 0:01:45]} 27. Qd6 {[%clk 0:01:03]}  Qb7 {[%clk 0:01:42]} 28. Nd8+ {[%clk 0:01:03]}  Rxd8 {[%clk 0:01:41]} 29. Qxd8 {[%clk 0:01:03]}  Nc4 {[%clk 0:01:40]} 30. Re1 {[%clk 0:01:03]} 1-0


[Site "https://www.chess.com"]